Cogmind - Beta 14 @@@ ROGUE MODE // 2024.09.29 @ 16:40:05 Player: so_sleepy.mp4 Result: Destroyed by L-31 Rogue with Katana Performance ------------- Evolutions (1) 500 Regions Visited (2) 400 Robots Destroyed (23) 115 Value Destroyed (430) 430 Prototype IDs (1) 20 Alien Tech Used (0) 0 Bonus (0) 0 TOTAL SCORE: 1465 Bonus ------- None Cogmind --------- Core Integrity 0/400 Matter 195/300 Energy 53/100 System Corruption 0% Temperature Cool (0) Movement Core (700) Ox13 Location -9/Materials Parts ------- > --- POWER (1) -------- (None) > --- PROPULSION (3) --- (None) > --- UTILITY (3) ------ High-capacity Storage Unit Improved Sensor Array > --- WEAPON (2) ------- (None) > --- INVENTORY (20) --- Cesium-ion Thruster Structural Scanner Improved Sensor Array Improved Sensor Array Salvage Targeting Computer Light Assault Rifle Peak State ------------ > --- POWER ------------ Light Nuclear Core > --- PROPULSION ------- Cesium-ion Thruster Cesium-ion Thruster Cesium-ion Thruster > --- UTILITY ---------- High-capacity Storage Unit Improved Sensor Array > --- WEAPON ----------- Heavy EM Pulse Gun Heavy Assault Rifle > --- INVENTORY -------- Cesium-ion Thruster Improved Sensor Array Improved Sensor Array Improved Sensor Array [Rating: 21] Favorites ----------- Power Light Ion Engine Engine Light Ion Engine Power Core Light Nuclear Core Propulsion Light Treads Treads Light Treads Leg Improved Aluminum Leg Hover Unit Improved Hover Unit Flight Unit Cesium-ion Thruster Utility Small Storage Unit Device Improved Terrain Scanner Storage Small Storage Unit Weapon Medium Laser Energy Gun Medium Laser Energy Cannon Advanced Beam Cannon Ballistic Gun Heavy Assault Rifle Launcher Grenade Launcher Special Weapon Mining Laser Build | -11 -10 -9 ------- Run | Yrd Mat Mat Slots Evolved 2 | . . 2 Power . | . . . Propulsion 1 | . . 1 Utility 1 | . . 1 Weapon . | . . . Parts Attached 36 | 12 7 17 Power 2 | 1 1 . Engine 1 | 1 . . Core 1 | . 1 . Reactor . | . . . Propulsion 12 | 3 . 9 Treads 5 | 2 . 3 Leg 2 | 1 . 1 Wheel . | . . . Hover 1 | . . 1 Flight 4 | . . 4 Utility 8 | 3 2 3 Device 6 | 2 2 2 Storage 2 | 1 . 1 Processor . | . . . Hackware . | . . . Protection . | . . . Artifact . | . . . Weapon 14 | 5 4 5 Energy Gun 7 | 3 2 2 Energy Cannon 2 | . . 2 Ballistic Gun 3 | 1 1 1 Ballistic Cannon . | . . . Launcher 1 | . 1 . Special Weapon 1 | 1 . . Impact Weapon . | . . . Slashing Weapon . | . . . Piercing Weapon . | . . . Special Melee Weapon . | . . . Unidentified Prototypes 1 | . . 1 Parts Lost 6 | . . 6 Power 1 | . . 1 Propulsion 2 | . . 2 Utility 1 | . . 1 Weapon 2 | . . 2 Highest Loss Streak 3 | . . 3 To Critical Strikes . | . . . Average Slot Usage (%) 84 | . 99 68 Engine 6 | . 12 . Core 4 | . 1 8 Treads 18 | . 28 7 Hover 1 | . . 2 Flight 1 | . . 2 Device 16 | . 14 18 Storage 11 | . 12 11 Energy Gun 11 | . 16 6 Ballistic Gun 3 | . 2 5 Launcher 6 | . 9 3 Peak Build Rating 21 | 9 9 21 Average Rating 9 | 7 7 12 On Entrance 6 | . 9 9 Naked Turns . | . . . Heaviest Build 53 | 13 16 53 Greatest Support 40 | 40 40 40 Greatest Overweight (x) 17 | 3 . 17 Average Overweight (x) 1 | . . 4 Largest Inventory Capacity 20 | 8 8 20 Average Capacity 11 | 7 7 19 Most Carried 10 | 5 5 10 Average Carried 3 | 3 2 4 Final Capacity 20 | 8 5 20 Final Carried 6 | 3 2 6 Class Distribution -------------------- 100% | Mutant Dominant Class ---------------- Mutant | -10/Materials Mutant | -9/Materials Resources | -11 -10 -9 ----------- Run | Yrd Mat Mat Matter Collected 639 | 360 157 122 Remotely 14 | 14 . . Salvage Created 769 | 146 416 207 Parts 48 | 14 17 17 Haulers Intercepted 1 | . . 1 Recyclers Shooed 5 | . 5 . Parts Field Recycled . | . . . Retrieved Matter . | . . . Parts Self-Destructed . | . . . Prevented . | . . . Kills | -11 -10 -9 ------- Run | Yrd Mat Mat Combat Hostiles Destroyed 11 | . 6 5 Guns 10 | . 5 5 AOE 1 | . 1 . Classes Destroyed 8 | 3 2 3 Worker 3 | 1 1 1 Tunneler 3 | 3 . . Hauler 1 | . . 1 Recycler 3 | 1 2 . Watcher 2 | . 1 1 Swarmer 3 | . . 3 Grunt 7 | . 6 1 Duelist 1 | . . 1 Best Kill Streak 4 | 4 3 3 Combat Bots Only 3 | . 2 3 Max Kills in Single Turn 1 | 1 1 1 Gunslinging . | . . . Exploded 1 | . 1 . Melee . | . . . Uniques/NPCs Destroyed . | . . . Combat | -11 -10 -9 -------- Run | Yrd Mat Mat Hostile Shots Fired 149 | . 41 108 Missed 46 | . 11 35 Damage Taken 1414 | . 446 968 Core 515 | . 88 427 Absorbed by Shields . | . . . Core Remaining (%) 82 | 100 64 . Volleys Fired 88 | 17 44 27 Largest 2 | 2 2 2 Hottest 136 | 100 100 136 Shots Fired 132 | 25 67 40 Gun 115 | 19 64 32 Cannon 6 | . . 6 Launcher 5 | . 3 2 Special 6 | 6 . . Kinetic 38 | . 19 19 Thermal 76 | 25 45 6 Explosive 5 | . 3 2 Electromagnetic 13 | . . 13 Robot Hit Streak 11 | 5 11 7 Robot Miss Streak 3 | 2 3 3 Penetration Max . | . . . Secondary Targets 1 | . . 1 Max Gunslinging Chain 1 | . . 1 Shots Hit Robots 78 | 10 44 24 Core Hits 38 | 6 22 10 Critical Kills . | . . . Critical Parts Destroyed . | . . . Critical Strikes 7 | 1 5 1 Burn 6 | 1 5 . Corrupt 1 | . . 1 Melee Attacks . | . . . Impact . | . . . Slashing . | . . . Piercing . | . . . Sneak Attacks . | . . . Combat Hostiles . | . . . Follow-up Attacks . | . . . Damage Inflicted 1253 | 128 612 513 Guns 959 | 122 522 315 Cannons 122 | . . 122 Explosions 166 | . 90 76 Melee . | . . . Ramming 6 | 6 . . Kinetic 339 | . 175 164 Thermal 630 | 122 347 161 Explosive 127 | . 90 37 Electromagnetic 151 | . . 151 Impact . | . . . Slashing . | . . . Piercing . | . . . Highest Corruption 3 | . 3 . Average Corruption 2 | . 2 . Corruption Purged . | . . . Corruption Blocked . | . . . Overload Shots . | . . . Overflow Damage . | . . . Projectiles . | . . . Explosions . | . . . Melee . | . . . Knockbacks . | . . . Impact . | . . . Kinetic . | . . . Secondary . | . . . Self-Inflicted Damage 18 | . 18 . Shots 1 | . 1 . Rammed 1 | 1 . . Targets Rammed 1 | 1 . . Kicked . | . . . Crushed . | . . . Highest Temperature 369 | 117 369 65 Average Temperature 75 | 27 129 14 Received Heat Transfer 483 | . 297 186 Effects 2 | . 2 . Interference 2 | . 2 . Siege Activations . | . . . Robots Corrupted . | . . . Combat Hostiles . | . . . Parts Fried . | . . . Impact Corruptions . | . . . Robots Melted . | . . . Combat Hostiles . | . . . Parts Melted 4 | 1 3 . Heat Transferred 2172 | 444 1406 322 Parts Sabotaged . | . . . Parts Stolen . | . . . Parts Stripped . | . . . Power Chain Reactions 1 | . . 1 Alert | -11 -10 -9 ------- Run | Yrd Mat Mat Peak Influence 147 | 25 147 115 Initial 33 | . . 33 Average 41 | 4 63 60 Maximum Alert Level . | . . . Low Security (%) 100 | 100 100 100 Level 1 . | . . . Level 2 . | . . . Level 3 . | . . . Level 4 . | . . . Level 5 . | . . . High Security . | . . . Max Security . | . . . Squads Dispatched 1 | . . 1 Investigation . | . . . Extermination . | . . . Reinforcement 1 | . . 1 Assault . | . . . Garrison . | . . . Intercept . | . . . Searches Triggered . | . . . Construction Impeded . | . . . Haulers Reinforced . | . . . Active Scanning Responses . | . . . Cargo Convoy Interrupts . | . . . Stealth | -11 -10 -9 --------- Run | Yrd Mat Mat Distress Signals 2 | . . 2 Communications Jammed . | . . . Distress Signals . | . . . Times Spotted 19 | . 9 10 Peak Tracking Total 4 | . 3 4 Tactical Retreats 2 | . 1 1 Traps | -11 -10 -9 ------- Run | Yrd Mat Mat Traps Triggered 2 | . 2 . Indirectly . | . . . Trap Hack Attempts . | . . . Triggered . | . . . Disarmed . | . . . Reprogrammed . | . . . Reused . | . . . Traps Extracted . | . . . Installed . | . . . Triggered . | . . . Machines | -11 -10 -9 ---------- Run | Yrd Mat Mat Machines Disabled . | . . . Max in Single Turn . | . . . Machines Repaired . | . . . Machines Dismantled . | . . . Machines Sabotaged . | . . . Overloaded Fab Kills . | . . . Hacking | -11 -10 -9 --------- Run | Yrd Mat Mat Machines Accessed . | . . . Terminals . | . . . Fabricators . | . . . Repair Stations . | . . . Recycling Units . | . . . Scanalyzers . | . . . Garrison Access . | . . . Total Hacks . | . . . Successful . | . . . Failed . | . . . Catastrophic . | . . . Database Lockouts . | . . . Manual . | . . . Terminals . | . . . Fabricators . | . . . Repair Stations . | . . . Recycling Units . | . . . Scanalyzers . | . . . Garrison Access . | . . . Terminal Hacks . | . . . Fabricator Hacks . | . . . Repair Station Hacks . | . . . Recycling Unit Hacks . | . . . Scanalyzer . | . . . Garrison Access Hacks . | . . . Unauthorized Hacks . | . . . Terminals . | . . . Fabricators . | . . . Repair Stations . | . . . Recycling Units . | . . . Scanalyzers . | . . . Garrison Access . | . . . Data Cores Recovered . | . . . Used . | . . . Hacking Detections . | . . . Full Trace Events . | . . . Feedback Events . | . . . Feedback Blocked . | . . . Robot Schematics Acquired . | . . . Robots Built . | . . . Authchips . | . . . Time . | . . . Total Robot Build Rating . | . . . Part Schematics Acquired . | . . . Parts Built . | . . . Authchips . | . . . Time . | . . . Total Part Build Rating . | . . . Parts Repaired . | . . . Time . | . . . Parts Recycled . | . . . Recycled Matter . | . . . Retrieved Matter . | . . . Retrieved Components . | . . . Parts Scanalyzed . | . . . Part Schematics Acquired . | . . . Parts Damaged . | . . . Bothacking | -11 -10 -9 ------------ Run | Yrd Mat Mat Used RIF Installer . | . . . Robots Hacked . | . . . Non-combat . | . . . Combat . | . . . Robot Hacks Applied . | . . . Relay Couplers Released . | . . . Fabnet Peak Effective % . | . . . Robots Rewired . | . . . Allies Hacked . | . . . Hacks Repelled . | . . . Allies | -11 -10 -9 -------- Run | Yrd Mat Mat Total Allies . | . . . Largest Group . | . . . Highest-Rated Group . | . . . Highest-Rated Ally . | . . . Total Orders . | . . . Ally Attacks . | . . . Total Damage . | . . . Kills . | . . . Allies Corrupted . | . . . Allies Melted . | . . . Intel | -11 -10 -9 ------- Run | Yrd Mat Mat Robot Analysis Total . | . . . Derelict Logs Recovered . | . . . Drone Launches . | . . . Drone Recoveries . | . . . Exploration | -11 -10 -9 ------------- Run | Yrd Mat Mat Turns Passed 2464 | 886 799 779 Spaces Moved 644 | 294 165 185 Core 40 | 8 . 32 Treads 541 | 267 165 109 Legs 38 | 19 . 19 Wheels . | . . . Hover . | . . . Flight 25 | . . 25 Fastest Speed 50 | 50 160 189 Average Speed 214 | 156 160 355 Slowest Speed 900 | 200 160 900 Overloaded Moves . | . . . Propulsion Burnouts . | . . . Robots Hopped . | . . . Cave-ins Triggered . | . . . Exploration Rate (%) 24 | 25 37 12 Regions Visited 2 Branch Regions . Pre-discovered Areas . | . . . Known Exits Taken . | . . . Unknown Exits Taken 2 | 1 1 . Scrap Searched . | . . . Spaces Dug 1 | 1 . . Terrain Destroyed 40 | 2 20 18 Melee . | . . . Projectile 2 | 2 . . AOE 38 | . 20 18 Terrain Rammed . | . . . Walls Destroyed . | . . . Machines Disabled . | . . . Actions | -11 -10 -9 --------- Run | Yrd Mat Mat Total 1592 | 682 634 276 Wait 759 | 344 408 7 Move 642 | 293 164 185 Hop . | . . . Pick Up 38 | 12 5 21 Fast Attach 1 | 1 . . Attach 24 | 8 3 13 Detach 4 | . . 4 Swap 11 | 3 4 4 Drop 24 | 3 6 15 Fire 88 | 17 44 27 Melee . | . . . Ram . | . . . Kick . | . . . Crush 1 | 1 . . Escape Stasis . | . . . Rewire . | . . . Trap . | . . . Miscellaneous . | . . . Route ------- -11/Scrapyard -10/Materials (discovered 2 exits: [*Mat] / [*Min]) -9/Materials History --------- Turn | Location | Event 30 | -11/Scrapyard | Discovered new exit (range 16) 887 | -11/Scrapyard | Entered Materials 888 | -10/Materials | Build established: Mutant 1105 | -10/Materials | Discovered new exit (range 11) 1667 | -10/Materials | Discovered new exit (range 11) 1686 | -10/Materials | Entered another Materials area 1686 | -9/Materials | Evolved 2 slots: Propulsion x1, Utility x1 2442 | -9/Materials | Core integrity fell below 50% 2458 | -9/Materials | Core integrity fell below 20% 2465 | -9/Materials | Destroyed by L-31 Rogue with Katana Last Messages --------------- C-30 ARC bursts open, deploying its payload. L-31 Rogue unfolds itself. G-34 Mercenary unfolds itself. To regain energy, simply wait via the mouse wheel, '.', or KP5. Also make sure your per-turn energy generation is a net positive, and consider deactivating power-draining parts if not. Imp. Aluminum Leg destroyed. U-05 Engineer lays Concrete. U-05 Engineer builds a Wall. Adv. Beam Cannon severed. U-05 Engineer lays Concrete. Imp. Sensor Array destroyed. U-05 Engineer builds a Wall. U-05 Engineer lays Concrete. Adv. Beam Cannon destroyed. U-05 Engineer lays Concrete. U-05 Engineer builds a Wall. U-05 Engineer lays Concrete. Map ----- +----------------------------------------------------+ | ????????????????????????????????????????? | | ????????????????????????????????????????? | | ????????????????????????????????????????? | | ????????????????????????????????????????? | | ????????????????????????????????????????? | | ????????????????????????????????????????? | | ????????????????????????????????????????? | | ????????????????????????????????????????? | | ????????????????????????????????????????? | | ????????????????????????????????????????? | | ????????????????????????????????????????? | | ????????????????????????????????????????? | | ????????????????????????????????????????? | | ????????????????????????????????????????? | | ????????????????????????????????????????? | | ????????????????????????????????????????? | | ????????????????????????????????????????? | | ????????????????????????????????????????? | | ????????????????????????????????????????? | | ?????????????#??????????????????????????? | | ?????????????# ?????????????????????????? | | ?????????????# ?????????#######?????????? | | ?????????????# ?????????# #?????????? | | ?????????????#%########## #?????????? | | ?????????????#"? l """ +?????????? | | ?????????????# ? #@""" #?????????? | | ?????????????# !]?] ] # """ #?????????? | | ???????# ????# !*%*! + """ #?????????? | | ???????# """?# **[! # #?????????? | | ???????# """?# * # #?????????? | | ???????# + + #?????????? | | ???????# # ####### //! #?????????? | | ???????#| # #?????# // #?????????? | | ???????####?## #?????# // #?????????? | | ????????????## ############## ??????? | | ????????????## ? ????? | | ????????????## % ????? | | ?????????????# #???? | | ?????????????# #???? | | ?????????????# #???? | | ?????????????# ######## #???? | | ????????????## #???#???? // #???? | | ???????????## # #?####?? // #???? | | ????????#???# #+### ### / #???? | | ??#???????### # ???????? | | ????????????## ## ?? ??????? | | ???????#????## ## # #??##??????????? | | ?????????##??# ## #####??#?????????? | | ?????????????# + ###??##??????????? | | ???????????#?# # #######??????????? | +----------------------------------------------------+ Best States ------------- Heat Dissipation 28 Energy Generation 14 Energy Capacity 160 Matter Stores 300 Matter Capacity 300 Sight Range 16 Robot Scan Range 15 Terrain Scan Range 16 Terrain Scan Density 10 Evasion (%) 50 Recoil Reduction 2 Item Schematics ----------------- None Robot Schematics ------------------ None Fabricated ------------ Nothing Alien Tech Used ----------------- None Achievements -------------- None Challenges ------------ None Game ------ Seed WeaponsOvertunedBox Manual? 0 Play Time 00:18:10 Cumulative 1.6 hours Start 2024.09.29 @ 16:21:37 End 2024.09.29 @ 16:40:05 Sessions 1 Manual Loads 0 Difficulty Rogue Special Mode None Game No. 4 Rogue 4 Adventurer 0 Explorer 0 Win Type - Total 0 Types 0/0/0/0/0/0/0/0/0 Lore% 0 Gallery% 5 Achievement% 5 Wizard Run 0 Options --------- Layout 1 ASCII 0 Keyboard 0 Movement Mouse Keybinds 0 Fullscreen 1 Font 24/Smallcaps Map View 50x35 Zoom Use 0% Tactical HUD 0 Map Filters NONE Filters NONE Steam 1 RUN: 05172218-a9b0-4bd9-9a62-3e57cd0f2421